fUST/lending_fUST_20250901
["ID","MTS","AMOUNT","RATE_DAILY","PERIOD"]
[382626254,1756685442016,-480.0,0.0001608,2]
[382626255,1756685442027,-480.0,0.0001608,2]
[382626256,1756685442038,-480.0,0.0001608,2]
[382626257,1756685442050,-580.21,0.0001608,2]
[382626258,1756685442062,-480.0,0.0001608,2]
[382626259,1756685442073,-480.0,0.0001608,2]
[382626260,1756685442084,-480.0,0.0001608,2]
[382626261,1756685442096,-480.0,0.0001608,2]
[382626262,1756685442107,-480.0,0.0001608,2]
[382626263,1756685442121,-480.0,0.0001608,2]
[382626264,1756685442131,-1232.5,0.0001608,2]
[382626265,1756685442143,-480.0,0.0001608,2]
[382626266,1756685442157,-481.09469984,0.0001608,2]
[382626267,1756685442168,-447.15716956,0.0001608,2]
[382626268,1756685442180,-481.98236086,0.0001608,2]
[382626269,1756685442195,-481.12814767,0.0001608,2]
[382626270,1756685442207,-482.2012894,0.0001608,2]
[382626271,1756685442218,-480.0,0.0001608,2]
[382626272,1756685442229,-480.0,0.0001608,2]
[382626273,1756685442241,-480.0,0.0001608,2]
[382626274,1756685442252,-1161.79,0.0001608,2]
[382626275,1756685442263,-312.43713229,0.0001608,2]
[382626276,1756685442275,-480.0,0.0001608,2]
[382626277,1756685442287,-480.0,0.0001608,2]
[382626278,1756685442298,-480.0,0.0001608,2]
[382626279,1756685442309,-480.0,0.0001608,2]
[382626280,1756685442320,-517.46,0.0001608,2]
[382626281,1756685442331,-480.0,0.0001608,2]
[382626282,1756685442343,-480.0,0.0001608,2]
[382626283,1756685442355,-480.0,0.0001608,2]
[382626284,1756685442366,-480.0,0.0001608,2]
[382626285,1756685442378,-480.0,0.0001608,2]
[382626286,1756685442390,-480.0,0.0001608,2]
[382626287,1756685442402,-480.0,0.0001608,2]
[382626288,1756685442631,-480.0,0.0001608,2]
[382626289,1756685442643,-480.0,0.0001608,2]
[382626290,1756685442655,-764.44,0.0001608,2]
[382626291,1756685442667,-753.19,0.0001608,2]
[382626292,1756685442679,-753.19,0.0001608,2]
[382626293,1756685442690,-480.0,0.0001608,2]
[382626294,1756685442701,-602.25,0.0001608,2]
[382626295,1756685442713,-480.0,0.0001608,2]
[382626296,1756685442724,-71657.304073,0.0001608,2]
[382626297,1756685442735,-591.27,0.0001608,2]
[382626298,1756685442747,-480.0,0.0001608,2]
[382626299,1756685442758,-1000.0,0.0001608,2]
[382626300,1756685442769,-510.7510522,0.0001608,2]
[382626301,1756685442780,-269.48133979,0.0001608,2]
[382626303,1756685442791,-480.0,0.0001608,2]
[382626304,1756685442803,-480.0,0.0001608,2]
[382626305,1756685442814,-480.0,0.0001608,2]
[382626306,1756685442825,-480.0,0.0001608,2]
[382626307,1756685442837,-500.0,0.0001608,2]
[382626309,1756685442847,-500.0,0.0001608,2]
[382626310,1756685442860,-500.0,0.0001608,2]
[382626311,1756685442872,-480.0,0.0001608,2]
[382626312,1756685442883,-480.0,0.0001608,2]
[382626313,1756685442894,-480.0,0.0001608,2]
[382626314,1756685442907,-480.0,0.0001608,2]
[382626315,1756685442918,-151.0,0.0001608,2]
[382626316,1756685442930,-564.25,0.0001608,2]
[382626317,1756685442941,-503.14,0.0001608,2]
[382626318,1756685442953,-480.0,0.0001608,2]
[382626319,1756685442964,-561.85,0.0001608,2]
[382626320,1756685442975,-480.0,0.0001608,2]
[382626321,1756685442986,-480.0,0.0001608,2]
[382626322,1756685442997,-480.0,0.0001608,2]
[382626323,1756685443009,-480.0,0.0001608,2]
[382626324,1756685443020,-481.78518685,0.0001608,2]
[382626327,1756685443033,-480.0,0.0001608,2]
[382626329,1756685443045,-1251.24,0.0001608,2]
[382626331,1756685443056,-480.0,0.0001608,2]
[382626333,1756685443067,-480.0,0.0001608,2]
[382626335,1756685443078,-480.0,0.0001608,2]
[382626337,1756685443089,-297.60048262,0.0001608,2]
[382626339,1756685443101,-528.9,0.0001608,2]
[382626340,1756685443115,-722.01,0.0001608,2]
[382626341,1756685443126,-480.0,0.0001608,2]
[382626342,1756685443136,-480.0,0.0001608,2]
[382626343,1756685443149,-480.0,0.0001608,2]
[382626344,1756685443162,-480.0,0.0001608,2]
[382626345,1756685443173,-480.0,0.0001608,2]
[382626346,1756685443186,-480.0,0.0001608,2]
[382626347,1756685443197,-480.0,0.0001608,2]
[382626348,1756685443209,-613.36,0.0001608,2]
[382626349,1756685443220,-480.0,0.0001608,2]
[382626350,1756685443231,-1180.51,0.0001608,2]
[382626351,1756685443243,-480.0,0.0001608,2]
[382626352,1756685443254,-151.0,0.0001608,2]
[382626353,1756685443266,-151.0,0.0001608,2]
[382626354,1756685443278,-480.0,0.0001608,2]
[382626355,1756685443290,-1255.54,0.0001608,2]
[382626356,1756685443301,-1235.7,0.0001608,2]
[382626358,1756685443312,-480.0,0.0001608,2]
[382626359,1756685443324,-480.0,0.0001608,2]
[382626360,1756685443335,-480.0,0.0001608,2]
[382626361,1756685443347,-480.0,0.0001608,2]
[382626362,1756685443359,-480.0,0.0001608,2]
[382626364,1756685443369,-647.81,0.0001608,2]
[382626365,1756685443381,-508.74794958,0.0001608,2]
[382626366,1756685443393,-480.0,0.0001608,2]
[382626367,1756685443404,-480.0,0.0001608,2]
[382626368,1756685443416,-480.0,0.0001608,2]
[382626369,1756685443428,-480.0,0.0001608,2]
[382626370,1756685443439,-480.0,0.00016081,2]
[382626371,1756685443451,-480.0,0.00016081,2]
[382626372,1756685443462,-480.0,0.00016081,2]
[382626373,1756685443474,-400.0,0.00016081,2]
[382626374,1756685443486,-600.57152664,0.00016081,2]
[382626375,1756685443497,-480.0,0.00016081,2]
[382626376,1756685443508,-368.00354687,0.00016081,2]
[382626377,1756685443519,-411.47985354,0.00016081,2]
[382626378,1756685443530,-480.0,0.00016081,2]
[382626379,1756685443542,-480.0,0.00016081,2]
[382626380,1756685443553,-480.0,0.00016081,2]
[382626381,1756685443564,-480.0,0.00016081,2]
[382626382,1756685443576,-480.0,0.00016081,2]
[382626383,1756685443588,-1796.04,0.00016081,2]
[382626384,1756685443600,-1120.17,0.00016081,2]
[382626385,1756685443611,-480.0,0.00016081,2]
[382626386,1756685443623,-548.04,0.00016081,2]
[382626387,1756685443634,-676.86,0.00016081,2]
[382626388,1756685443645,-480.0,0.00016081,2]
[382626389,1756685443658,-1341.02,0.00016081,2]
[382626390,1756685443669,-728.5,0.00016081,2]
[382626391,1756685443680,-1269.83,0.00016081,2]
[382626392,1756685443692,-500.0,0.00016081,2]
[382626393,1756685443704,-500.0,0.00016081,2]
[382626394,1756685443716,-500.0,0.00016081,2]
[382626395,1756685443729,-500.0,0.00016081,2]
[382626396,1756685444008,-500.0,0.00016081,2]
[382626397,1756685444034,-480.0,0.00016081,2]
[382626398,1756685444047,-884.44,0.00016081,2]
[382626399,1756685444057,-400.0,0.00016081,2]
[382626400,1756685444068,-639.02,0.00016081,2]
[382626401,1756685444078,-1297.31,0.00016081,2]
[382626402,1756685444087,-480.0,0.00016081,2]
[382626403,1756685444097,-480.0,0.00016081,2]
[382626404,1756685444107,-612.66,0.00016081,2]
[382626405,1756685444120,-480.0,0.00016081,2]
[382626406,1756685444130,-480.0,0.00016081,2]
[382626407,1756685444140,-480.0,0.00016081,2]
[382626408,1756685444149,-480.0,0.00016081,2]
[382626409,1756685444161,-480.0,0.00016081,2]
[382626410,1756685444171,-1003.51,0.00016081,2]
[382626411,1756685444181,-805.19,0.00016081,2]
[382626412,1756685444192,-480.0,0.00016081,2]
[382626413,1756685444202,-729.22,0.00016081,2]
[382626414,1756685444212,-480.0,0.00016081,2]
[382626415,1756685444221,-480.0,0.00016081,2]
[382626416,1756685444231,-1000.0,0.00016082,2]
[382626417,1756685444241,-753.19,0.00016082,2]
[382626418,1756685444251,-753.19,0.00016082,2]
[382626419,1756685444262,-753.19,0.00016082,2]
[382626420,1756685444272,-753.19,0.00016082,2]
[382626421,1756685444282,-753.19,0.00016082,2]
[382626422,1756685444291,-151.0,0.00016082,2]
[382626423,1756685444301,-500.0,0.00016082,2]
[382626424,1756685444311,-500.0,0.00016082,2]
[382626425,1756685444320,-753.19,0.00016082,2]
[382626426,1756685444330,-272.81,0.00016082,2]
[382626427,1756685444340,-272.81,0.00016082,2]
[382626428,1756685444350,-272.81,0.00016082,2]
[382626429,1756685444360,-272.81,0.00016082,2]
[382626430,1756685444370,-272.81,0.00016082,2]
[382626431,1756685444379,-272.81,0.00016082,2]
[382626432,1756685444389,-272.8,0.00016082,2]
[382626433,1756685444399,-548.6,0.00016083,2]
[382626434,1756685444411,-480.0,0.00016083,2]
[382626435,1756685444421,-480.0,0.00016083,2]
[382626436,1756685444431,-480.0,0.00016083,2]
[382626437,1756685444441,-480.0,0.00016083,2]
[382626438,1756685444451,-480.0,0.00016083,2]
[382626439,1756685444461,-480.0,0.00016083,2]
[382626440,1756685444470,-480.0,0.00016083,2]
[382626441,1756685444480,-480.0,0.00016083,2]
[382626442,1756685444490,-480.0,0.00016083,2]
[382626443,1756685444499,-558.78,0.00016083,2]
[382626444,1756685444509,-480.0,0.00016083,2]
[382626445,1756685444518,-480.0,0.00016083,2]
[382626446,1756685444528,-480.0,0.00016083,2]
[382626447,1756685444538,-480.0,0.00016083,2]
[382626448,1756685444548,-676.29,0.00016083,2]
[382626449,1756685444558,-480.0,0.00016083,2]
[382626450,1756685444568,-480.0,0.00016083,2]
[382626451,1756685444577,-480.0,0.00016083,2]
[382626452,1756685444587,-480.0,0.00016083,2]
[382626453,1756685444596,-480.0,0.00016083,2]
[382626454,1756685444606,-673.12,0.00016083,2]
[382626455,1756685444616,-480.0,0.00016083,2]
[382626456,1756685444626,-480.0,0.00016083,2]
[382626457,1756685444636,-480.0,0.00016083,2]
[382626458,1756685444646,-480.0,0.00016083,2]
[382626459,1756685444656,-480.0,0.00016083,2]
[382626460,1756685444666,-564.43,0.00016083,2]
[382626461,1756685444675,-480.0,0.00016083,2]
[382626462,1756685444684,-480.0,0.00016083,2]
[382626463,1756685444694,-480.0,0.00016083,2]
[382626464,1756685444704,-480.81533709,0.00016083,2]
[382626465,1756685444714,-480.0,0.00016083,2]
[382626466,1756685444723,-480.0,0.00016083,2]
[382626467,1756685444733,-151.0,0.00016083,2]
[382626468,1756685444742,-480.0,0.00016083,2]
[382626469,1756685444752,-480.0,0.00016083,2]
[382626470,1756685444761,-916.42,0.00016083,2]
[382626471,1756685444770,-480.0,0.00016083,2]
[382626472,1756685444779,-480.0,0.00016083,2]
[382626473,1756685444789,-480.0,0.00016083,2]
[382626474,1756685444798,-480.0,0.00016083,2]
[382626475,1756685444808,-987.62,0.00016083,2]
[382626476,1756685444817,-480.0,0.00016083,2]
[382626477,1756685444827,-480.0,0.00016083,2]
[382626478,1756685444836,-480.0,0.00016083,2]
[382626479,1756685444845,-666.32,0.00016083,2]
[382626480,1756685444855,-480.0,0.00016083,2]
[382626481,1756685444864,-773.64,0.00016083,2]
[382626482,1756685444874,-480.0,0.00016083,2]
[382626483,1756685444883,-480.0,0.00016083,2]
[382626484,1756685444893,-480.0,0.00016083,2]
[382626485,1756685444903,-480.0,0.00016083,2]
[382626486,1756685444913,-480.0,0.00016083,2]
[382626487,1756685444923,-480.0,0.00016083,2]
[382626488,1756685444933,-480.0,0.00016083,2]
[382626489,1756685444943,-480.0,0.00016083,2]
[382626490,1756685444954,-500.0,0.00016083,2]
[382626491,1756685444965,-482.59720954,0.00016083,2]
[382626492,1756685444975,-480.0,0.00016083,2]
[382626493,1756685444985,-480.0,0.00016083,2]
[382626494,1756685444994,-480.0,0.00016083,2]
[382626496,1756685445006,-405.51587298,0.00016083,2]
[382626497,1756685445015,-616.92,0.00016083,2]
[382626498,1756685445024,-957.57,0.00016083,2]
[382626499,1756685445034,-480.0,0.00016083,2]
[382626500,1756685445046,-1705.03,0.00016083,2]
[382626501,1756685445056,-480.0,0.00016083,2]
[382626502,1756685445066,-480.0,0.00016083,2]
[382626503,1756685445076,-480.0,0.00016083,2]
[382626505,1756685445086,-151.0,0.00016083,2]
[382626506,1756685445095,-151.0,0.00016083,2]
[382626508,1756685445106,-151.0,0.00016083,2]
[382626509,1756685445119,-480.0,0.00016083,2]
[382626510,1756685445129,-151.0,0.00016083,2]
[382626511,1756685445138,-579.36,0.00016083,2]
[382626512,1756685445147,-480.0,0.00016083,2]
[382626513,1756685445158,-1038.93,0.00016083,2]
[382626514,1756685445167,-480.0,0.00016083,2]
[382626515,1756685445177,-480.0,0.00016083,2]
[382626517,1756685445187,-151.55384,0.00016083,2]
[382626518,1756685445197,-480.0,0.00016083,2]
[382626519,1756685445206,-480.0,0.00016083,2]
[382626520,1756685445215,-480.0,0.00016083,2]
[382626521,1756685445224,-345.62403069,0.00016083,2]
[382626522,1756685445234,-716.54,0.00016083,2]
[382626523,1756685445243,-480.0,0.00016083,2]
[382626524,1756685445253,-520.8,0.00016083,2]
[382626525,1756685445263,-839.95,0.00016083,2]
[382626526,1756685445272,-812.59,0.00016083,2]
[382626527,1756685445281,-664.14,0.00016083,2]
[382626528,1756685445291,-482.4887696,0.00016083,2]
[382626529,1756685445300,-151.0,0.00016083,2]
[382626530,1756685445310,-151.0,0.00016083,2]
[382626531,1756685445319,-151.0,0.00016083,2]
[382626532,1756685445329,-480.0,0.00016083,2]
[382626533,1756685445339,-535.33,0.00016083,2]
[382626534,1756685445348,-480.0,0.00016083,2]
[382626535,1756685445357,-480.0,0.00016083,2]
[382626536,1756685445367,-480.0,0.00016083,2]
[382626537,1756685445376,-480.0,0.00016083,2]
[382626538,1756685445386,-480.0,0.00016083,2]
[382626539,1756685445395,-1060.98,0.00016083,2]
[382626540,1756685445407,-480.0,0.00016083,2]
[382626541,1756685445416,-480.0,0.00016083,2]
[382626542,1756685445426,-480.0,0.00016083,2]
[382626543,1756685445436,-481.42,0.00016083,2]
[382626544,1756685445445,-480.0,0.00016083,2]
[382626545,1756685445455,-151.0,0.00016083,2]
[382626546,1756685445464,-480.0,0.00016083,2]
[382626547,1756685445474,-480.0,0.00016083,2]
[382626548,1756685445483,-480.0,0.00016083,2]
[382626549,1756685445493,-480.0,0.00016083,2]
[382626550,1756685445502,-480.66036303,0.00016083,2]
[382626551,1756685445512,-480.0,0.00016083,2]
[382626552,1756685445521,-480.0,0.00016083,2]
[382626553,1756685445531,-480.0,0.00016083,2]
[382626554,1756685445540,-480.0,0.00016083,2]
[382626555,1756685445550,-480.0,0.00016083,2]
[382626556,1756685445559,-481.07907518,0.00016083,2]
[382626558,1756685445568,-480.0,0.00016083,2]
[382626560,1756685445577,-480.0,0.00016083,2]
[382626562,1756685445587,-480.0,0.00016083,2]
[382626564,1756685445596,-528.76,0.00016083,2]
[382626566,1756685445606,-480.0,0.00016083,2]
[382626567,1756685445617,-151.0,0.00016083,2]
[382626568,1756685445626,-480.88289953,0.00016083,2]
[382626569,1756685445635,-633.04,0.00016083,2]
[382626570,1756685445645,-526.08976141,0.00016083,2]
[382626571,1756685445654,-1300.16,0.00016083,2]
[382626572,1756685445663,-489.6535696,0.00016083,2]
[382626573,1756685445673,-481.39767338,0.00016083,2]
[382626574,1756685445682,-480.00000001,0.00016083,2]
[382626575,1756685445692,-774.12,0.00016083,2]
[382626576,1756685445701,-151.0,0.00016083,2]
[382626577,1756685445711,-480.0,0.00016083,2]
[382626578,1756685445721,-480.0,0.00016083,2]
[382626579,1756685445730,-480.0,0.00016083,2]
[382626580,1756685445740,-753.19,0.00016099,2]
[382626581,1756685445749,-2502.0,0.0001611,2]
[382626582,1756685445759,-151.0,0.0001611,2]
[382626583,1756685445769,-1360.00050872,0.00016125,2]
[382626584,1756685445778,-1937.63452295,0.00016159,2]
[382626585,1756685445787,-753.19,0.00016181,2]
[382626586,1756685445797,-753.19,0.00016182,2]
[382626588,1756685445806,-379.0,0.00016182,2]
[382626589,1756685445817,-480.0,0.00016183,2]
[382626590,1756685445826,-480.0,0.00016183,2]
[382626591,1756685445836,-480.0,0.00016183,2]
[382626592,1756685445845,-659.74,0.00016183,2]
[382626593,1756685445859,-480.0,0.00016183,2]
[382626595,1756685445870,-608.44,0.00016183,2]
[382626596,1756685445881,-480.0,0.00016183,2]
[382626597,1756685445891,-555.45,0.00016183,2]
[382626598,1756685445902,-480.0,0.00016183,2]
[382626599,1756685445911,-554.21,0.00016183,2]
[382626600,1756685445921,-151.0,0.00016183,2]
[382626601,1756685445932,-151.0,0.00016183,2]
[382626602,1756685445943,-151.0,0.00016183,2]
[382626603,1756685445953,-151.0,0.00016183,2]
[382626604,1756685445967,-151.0,0.00016183,2]
[382626605,1756685445981,-151.0,0.00016183,2]
[382626606,1756685445994,-225.188496,0.00016183,2]
[382626607,1756685446004,-151.0,0.00016183,2]
[382626608,1756685446013,-1000.0,0.00016183,2]
[382626609,1756685446024,-1000.0,0.00016183,2]
[382626610,1756685446033,-1000.0,0.00016183,2]
[382626611,1756685446043,-1000.0,0.00016183,2]
[382626613,1756685446053,-868.837679,0.00016183,2]
[382626615,1756685446062,-151.0,0.00016183,2]
[382626616,1756685446072,-151.0,0.000162,2]
[382626617,1756685446082,-151.0,0.000162,2]
[382626618,1756685446092,-379.0,0.00016201,2]
[382626619,1756685446102,-379.0,0.00016207,2]
[382626620,1756685446113,-753.19,0.00016219,2]
[382626621,1756685446123,-14421.18161689,0.0001622,2]
[382626622,1756685446133,-379.0,0.00016248,2]
[382626623,1756685446142,-1937.63452295,0.00016249,2]
[382626624,1756685446152,-379.0,0.00016274,2]
[382626625,1756685446163,-379.0,0.0001629,2]
[382626627,1756685446172,-282.719668,0.00016295,2]
[382626629,1756685446182,-151.0,0.000163,2]
[382626630,1756685446194,-151.0,0.000163,2]
[382626631,1756685446203,-151.0,0.000163,2]
[382626632,1756685446214,-272.71618602,0.00016324,2]
[382626633,1756685446223,-1937.63452295,0.00016338,2]
[382626634,1756685446233,-480.0,0.00016344,2]
[382626635,1756685446243,-480.0,0.00016344,2]
[382626636,1756685446253,-1389.98,0.00016344,2]
[382626637,1756685446263,-497.13,0.00016344,2]
[382626638,1756685446272,-500.0,0.00016345,2]
[382626639,1756685446282,-500.0,0.00016345,2]
[382626640,1756685446292,-151.0,0.00016345,2]
[382626641,1756685446302,-151.0,0.00016345,2]
[382626642,1756685446312,-500.0,0.00016345,2]
[382626643,1756685446321,-1558.0,0.00016345,2]
[382626644,1756685446331,-885.05,0.00016345,2]
[382626645,1756685446341,-480.0,0.00016345,2]
[382626646,1756685446351,-480.0,0.00016345,2]
[382626647,1756685446360,-480.0,0.00016345,2]
[382626648,1756685446370,-519.91,0.00016345,2]
[382626649,1756685446380,-480.0,0.00016345,2]
[382626650,1756685446389,-480.0,0.00016345,2]
[382626651,1756685446399,-1438.66,0.00016345,2]
[382626652,1756685446410,-480.0,0.00016345,2]
[382626653,1756685446421,-480.0,0.00016345,2]
[382626654,1756685446430,-480.0,0.00016345,2]
[382626656,1756685446439,-480.0,0.00016345,2]
[382626658,1756685446449,-480.0,0.00016345,2]
[382626659,1756685446460,-480.0,0.00016345,2]
[382626660,1756685446471,-480.0,0.00016345,2]
[382626661,1756685446480,-480.0,0.00016345,2]
[382626662,1756685446490,-480.0,0.00016345,2]
[382626663,1756685446499,-850.95,0.00016345,2]
[382626664,1756685446509,-480.0,0.00016345,2]
[382626665,1756685446520,-480.0,0.00016345,2]
[382626666,1756685446529,-753.19,0.00016345,2]
[382626667,1756685446539,-554.74,0.00016345,2]
[382626668,1756685446548,-1012.94,0.00016345,2]
[382626669,1756685446558,-996.37,0.00016345,2]
[382626670,1756685446568,-151.0,0.00016345,2]
[382626671,1756685446579,-611.41,0.00016345,2]
[382626672,1756685446589,-769.55,0.00016345,2]
[382626673,1756685446599,-480.0,0.00016345,2]
[382626674,1756685446609,-480.0,0.00016345,2]
[382626675,1756685446619,-646.08,0.00016345,2]
[382626676,1756685446629,-480.0,0.00016345,2]
[382626677,1756685446639,-480.0,0.00016345,2]
[382626678,1756685446648,-480.0,0.00016345,2]
[382626679,1756685446658,-480.0,0.00016345,2]
[382626680,1756685446668,-2266.81,0.00016345,2]
[382626681,1756685446681,-480.0,0.00016345,2]
[382626682,1756685446691,-480.0,0.00016345,2]
[382626683,1756685446700,-480.0,0.00016345,2]
[382626684,1756685446710,-480.0,0.00016345,2]
[382626685,1756685446720,-480.0,0.00016345,2]
[382626686,1756685446730,-480.0,0.00016345,2]
[382626687,1756685446739,-1900.15,0.00016345,2]
[382626688,1756685446749,-480.0,0.00016345,2]
[382626689,1756685446759,-723.98,0.00016345,2]
[382626690,1756685446769,-480.0,0.00016345,2]
[382626691,1756685446780,-480.0,0.00016345,2]
[382626693,1756685446790,-480.0,0.00016345,2]
[382626694,1756685446799,-480.0,0.00016345,2]
[382626695,1756685446809,-480.0,0.00016345,2]
[382626696,1756685446819,-480.0,0.00016345,2]
[382626697,1756685446829,-480.0,0.00016345,2]
[382626698,1756685446838,-480.0,0.00016345,2]
[382626699,1756685446848,-911.84,0.00016345,2]
[382626700,1756685446857,-480.0,0.00016345,2]
[382626701,1756685446866,-480.0,0.00016345,2]
[382626702,1756685446876,-480.0,0.00016345,2]
[382626704,1756685446886,-480.0,0.00016345,2]
[382626705,1756685446895,-1216.79,0.00016345,2]
[382626706,1756685446905,-881.69,0.00016345,2]
[382626707,1756685446914,-480.0,0.00016345,2]
[382626708,1756685446923,-480.0,0.00016345,2]
[382626709,1756685446933,-480.0,0.00016345,2]
[382626710,1756685446942,-480.0,0.00016345,2]
[382626711,1756685446952,-676.47,0.00016345,2]
[382626712,1756685446961,-480.0,0.00016345,2]
[382626713,1756685446971,-774.18,0.00016345,2]
[382626714,1756685446980,-741.99,0.00016345,2]
[382626715,1756685446991,-480.0,0.00016345,2]
[382626716,1756685447001,-615.93,0.00016345,2]
[382626717,1756685447011,-480.0,0.00016345,2]
[382626718,1756685447020,-480.0,0.00016345,2]
[382626719,1756685447031,-716.24,0.00016345,2]
[382626720,1756685447041,-480.0,0.00016345,2]
[382626721,1756685447052,-543.8,0.00016345,2]
[382626722,1756685447061,-876.78,0.00016345,2]
[382626723,1756685447071,-480.0,0.00016345,2]
[382626724,1756685447081,-614.93,0.00016345,2]
[382626725,1756685447090,-584.44,0.00016345,2]
[382626726,1756685447100,-480.0,0.00016345,2]
[382626727,1756685447111,-887.99,0.00016345,2]
[382626728,1756685447122,-480.0,0.00016345,2]
[382626729,1756685447132,-597.14,0.00016345,2]
[382626730,1756685447142,-2635.98,0.00016345,2]
[382626731,1756685447151,-480.0,0.00016345,2]
[382626732,1756685447163,-480.0,0.00016345,2]
[382626733,1756685447173,-1116.49,0.00016345,2]
[382626734,1756685447339,-480.0,0.00016345,2]
[382626735,1756685447355,-664.8,0.00016345,2]
[382626736,1756685447365,-694.5,0.00016345,2]
[382626737,1756685447375,-480.0,0.00016345,2]
[382626738,1756685447384,-480.0,0.00016345,2]
[382626739,1756685447394,-480.0,0.00016345,2]
[382626740,1756685447404,-480.0,0.00016345,2]
[382626741,1756685447414,-480.0,0.00016345,2]
[382626742,1756685447424,-921.14,0.00016345,2]
[382626743,1756685447434,-480.0,0.00016345,2]
[382626744,1756685447444,-480.0,0.00016345,2]
[382626745,1756685447453,-1222.66,0.00016345,2]
[382626746,1756685447462,-480.0,0.00016345,2]
[382626747,1756685447471,-480.0,0.00016345,2]
[382626748,1756685447480,-379.0,0.00016346,2]
[382626749,1756685447490,-500.0,0.00016346,2]
[382626750,1756685447499,-500.0,0.00016346,2]
[382626751,1756685447508,-969.91,0.00016346,2]
[382626752,1756685447517,-775.13,0.00016346,2]
[382626753,1756685447527,-480.0,0.00016346,2]
[382626754,1756685447536,-480.0,0.00016346,2]
[382626755,1756685447546,-480.0,0.00016346,2]
[382626756,1756685447555,-850.26,0.00016346,2]
[382626757,1756685447565,-551.11,0.00016346,2]
[382626758,1756685447574,-480.0,0.00016346,2]
[382626759,1756685447584,-638.96,0.00016346,2]
[382626760,1756685447593,-480.0,0.00016346,2]
[382626761,1756685447602,-1398.06,0.00016346,2]
[382626762,1756685447612,-479.83997074,0.00016346,2]
[382626763,1756685447621,-480.0,0.00016346,2]
[382626764,1756685447630,-492.35,0.00016346,2]
[382626765,1756685447640,-480.0,0.00016346,2]
[382626766,1756685447649,-1105.97,0.00016346,2]
[382626767,1756685447660,-480.0,0.00016346,2]
[382626768,1756685447669,-1220.76,0.00016346,2]
[382626769,1756685447678,-480.0,0.00016346,2]
[382626770,1756685447687,-602.80437329,0.00016346,2]
[382626771,1756685447697,-5843.93,0.00016346,2]
[382626772,1756685447706,-480.0,0.00016346,2]
[382626773,1756685447716,-636.5,0.00016346,2]
[382626774,1756685447726,-2282.02,0.00016346,2]
[382626775,1756685447736,-1269.57,0.00016346,2]
[382626776,1756685447746,-907.91,0.00016346,2]
[382626777,1756685447756,-480.0,0.00016346,2]
[382626778,1756685447766,-1369.06,0.00016346,2]
[382626779,1756685447776,-480.0,0.00016346,2]
[382626780,1756685447786,-3449.42,0.00016346,2]
[382626781,1756685447796,-2416.24,0.00016346,2]
[382626782,1756685447805,-480.0,0.00016346,2]
[382626783,1756685447814,-1229.21,0.00016346,2]
[382626784,1756685447824,-739.95,0.00016346,2]